[Event "*** Titled Tuesday Blitz"]
[Site "Chess.com"]
[Date "2020.05.26"]
[Round "2"]
[White "bascheyaro"]
[Black "Muguet7"]
[Result "1-0"]
[WhiteElo "2690"]
[BlackElo "2462"]
[TimeControl "180+1"]
[EndTime "10:17:32 PDT"]
[Termination "bascheyaro won by resignation"]

1. d4 {[%clk 0:03:00.9]} 1... Nf6 {[%clk 0:02:59.3]} 2. Nf3 {[%clk 0:03:00.9]}
2... e6 {[%clk 0:02:59.1]} 3. Bg5 {[%clk 0:02:59.3]} 3... h6 {[%clk 0:02:57.9]}
4. Bh4 {[%clk 0:02:59.3]} 4... b6 {[%clk 0:02:57.6]} 5. e3 {[%clk 0:02:59.5]}
5... Bb7 {[%clk 0:02:57.4]} 6. a4 {[%clk 0:02:59.9]} 6... Be7 {[%clk 0:02:56.5]}
7. a5 {[%clk 0:02:59.9]} 7... c5 {[%clk 0:02:56.2]} 8. Nc3 {[%clk 0:02:57.2]}
8... cxd4 {[%clk 0:02:47]} 9. exd4 {[%clk 0:02:56.8]} 9... bxa5 {[%clk
0:02:42.6]} 10. Bd3 {[%clk 0:02:56.2]} 10... Nc6 {[%clk 0:02:34.3]} 11. O-O
{[%clk 0:02:55.8]} 11... O-O {[%clk 0:02:31]} 12. Qe2 {[%clk 0:02:52.6]} 12...
Nb4 {[%clk 0:02:29.2]} 13. Bb5 {[%clk 0:02:46.3]} 13... a6 {[%clk 0:02:22.2]}
14. Ba4 {[%clk 0:02:46.4]} 14... Bxf3 {[%clk 0:02:17.2]} 15. Qxf3 {[%clk
0:02:45.5]} 15... d5 {[%clk 0:02:13.8]} 16. Bxf6 {[%clk 0:02:26.5]} 16... Bxf6
{[%clk 0:02:13.1]} 17. Ne2 {[%clk 0:02:26.9]} 17... Rc8 {[%clk 0:02:03.3]} 18.
c3 {[%clk 0:02:26.1]} 18... Nc6 {[%clk 0:02:03.2]} 19. Ng3 {[%clk 0:02:25.4]}
19... g6 {[%clk 0:01:54.2]} 20. Ra2 {[%clk 0:02:14.7]} 20... Kg7 {[%clk
0:01:52.1]} 21. Rfa1 {[%clk 0:02:14.1]} 21... Na7 {[%clk 0:01:45.7]} 22. Bd1
{[%clk 0:02:09.1]} 22... Qb6 {[%clk 0:01:41]} 23. Qe2 {[%clk 0:02:08.2]} 23...
Nc6 {[%clk 0:01:38.8]} 24. Ba4 {[%clk 0:01:59.6]} 24... Ne7 {[%clk 0:01:35.8]}
25. Bc2 {[%clk 0:01:58.9]} 25... Nc6 {[%clk 0:01:35.1]} 26. Bd3 {[%clk
0:01:58.9]} 26... Ra8 {[%clk 0:01:24.3]} 27. Qg4 {[%clk 0:01:51.3]} 27... Bg5
{[%clk 0:01:13.8]} 28. h4 {[%clk 0:01:51.2]} 28... Be7 {[%clk 0:01:11.1]} 29.
Nh5+ {[%clk 0:01:48.3]} 29... Kh7 {[%clk 0:01:09.3]} 30. Nf4 {[%clk 0:01:48.7]}
30... Rg8 {[%clk 0:00:51.4]} 31. h5 {[%clk 0:01:48.7]} 31... Bg5 {[%clk
0:00:19.9]} 32. hxg6+ {[%clk 0:01:48.7]} 32... fxg6 {[%clk 0:00:17.1]} 33. Nxg6
{[%clk 0:01:44.5]} 33... Rxg6 {[%clk 0:00:15.9]} 34. Qxe6 {[%clk 0:01:44.8]}
34... Rg8 {[%clk 0:00:12.2]} 35. Qf7+ {[%clk 0:01:45.1]} 35... Kh8 {[%clk
0:00:09.8]} 36. Bxg6 {[%clk 0:01:45.2]} 36... Qa7 {[%clk 0:00:08.2]} 37. Qxa7
{[%clk 0:01:39.8]} 37... Nxa7 {[%clk 0:00:08.2]} 38. Bf7 {[%clk 0:01:39.5]}
38... Rd8 {[%clk 0:00:07.5]} 39. Rxa5 {[%clk 0:01:39]} 39... Nc6 {[%clk
0:00:07]} 40. Rxd5 {[%clk 0:01:37.3]} 40... Rf8 {[%clk 0:00:04.9]} 41. Rxa6
{[%clk 0:01:33.5]} 41... Ne7 {[%clk 0:00:04]} 42. Rxg5 {[%clk 0:01:29.7]} 42...
hxg5 {[%clk 0:00:03.8]} 43. Be6 {[%clk 0:01:29.4]} 43... Kg7 {[%clk 0:00:04.1]}
44. d5 {[%clk 0:01:28.2]} 44... Kf6 {[%clk 0:00:05]} 45. Bg4+ {[%clk 0:01:24.7]}
45... Kf7 {[%clk 0:00:04.2]} 46. Ra7 {[%clk 0:01:23.6]} 46... Kf6 {[%clk
0:00:03.7]} 47. d6 {[%clk 0:01:23.6]} 47... Nc6 {[%clk 0:00:03.5]} 48. Ra6
{[%clk 0:01:22.9]} 48... Ne5 {[%clk 0:00:04.4]} 49. f3 {[%clk 0:01:20.3]} 49...
Rd8 {[%clk 0:00:05.1]} 50. b3 {[%clk 0:01:19]} 50... Nxg4 {[%clk 0:00:04.6]} 51.
fxg4 {[%clk 0:01:19.4]} 51... Ke6 {[%clk 0:00:04.7]} 52. c4 {[%clk 0:01:19.6]}
52... Rb8 {[%clk 0:00:04.8]} 53. Ra5 {[%clk 0:01:12.9]} 53... Rxb3 {[%clk
0:00:04.9]} 54. Rd5 {[%clk 0:01:12.9]} 54... Rc3 {[%clk 0:00:04.2]} 55. d7
{[%clk 0:01:13.3]} 1-0

[Event "*** Titled Tuesday Blitz"]
[Site "Chess.com"]
[Date "2020.05.26"]
[Round "2"]
[White "andriipalchuk"]
[Black "grzechu96"]
[Result "0-1"]
[WhiteElo "2076"]
[BlackElo "2609"]
[TimeControl "180+1"]
[EndTime "10:17:32 PDT"]
[Termination "grzechu96 won by resignation"]

1. e4 {[%clk 0:03:00.9]} 1... c5 {[%clk 0:02:59]} 2. c3 {[%clk 0:03:01.3]} 2...
Nf6 {[%clk 0:02:48.2]} 3. e5 {[%clk 0:03:00.2]} 3... Nd5 {[%clk 0:02:48.5]} 4.
Bc4 {[%clk 0:03:00.5]} 4... e6 {[%clk 0:02:48.4]} 5. Nf3 {[%clk 0:02:59.8]} 5...
d6 {[%clk 0:02:47.2]} 6. d4 {[%clk 0:02:58.8]} 6... cxd4 {[%clk 0:02:47.2]} 7.
cxd4 {[%clk 0:02:57.2]} 7... Nc6 {[%clk 0:02:47.6]} 8. O-O {[%clk 0:02:51.3]}
8... Be7 {[%clk 0:02:47.7]} 9. Qe2 {[%clk 0:02:50.8]} 9... O-O {[%clk
0:02:46.7]} 10. Nc3 {[%clk 0:02:47.7]} 10... Nxc3 {[%clk 0:02:46.5]} 11. bxc3
{[%clk 0:02:48.6]} 11... dxe5 {[%clk 0:02:46.8]} 12. dxe5 {[%clk 0:02:47.7]}
12... Qa5 {[%clk 0:02:47.3]} 13. Bd2 {[%clk 0:02:41.9]} 13... Rd8 {[%clk
0:02:47.4]} 14. Rfe1 {[%clk 0:02:24.4]} 14... Bd7 {[%clk 0:02:26.5]} 15. Bd3
{[%clk 0:01:46.7]} 15... Be8 {[%clk 0:02:22.7]} 16. h4 {[%clk 0:01:28.8]} 16...
Rd7 {[%clk 0:02:03.5]} 17. Bc2 {[%clk 0:01:13.7]} 17... Rad8 {[%clk 0:02:01.5]}
18. Bg5 {[%clk 0:01:01.4]} 18... Qxc3 {[%clk 0:01:53.8]} 19. Rac1 {[%clk
0:00:58.6]} 19... Qb4 {[%clk 0:01:46.2]} 20. Bxe7 {[%clk 0:00:33.7]} 20... Rxe7
{[%clk 0:01:34.7]} 21. Rb1 {[%clk 0:00:21.7]} 21... Qc5 {[%clk 0:00:53.1]} 22.
Bxh7+ {[%clk 0:00:20.5]} 22... Kxh7 {[%clk 0:00:45.4]} 23. Ng5+ {[%clk
0:00:20.3]} 23... Kh6 {[%clk 0:00:45.8]} 24. Rb3 {[%clk 0:00:16.5]} 24... Nd4
{[%clk 0:00:28.2]} 25. Qe3 {[%clk 0:00:13.6]} 25... Nxb3 {[%clk 0:00:28.6]} 26.
Nxf7+ {[%clk 0:00:12.5]} 26... Kh7 {[%clk 0:00:25.6]} 27. Nxd8 {[%clk
0:00:08.5]} 27... Qxe3 {[%clk 0:00:24]} 28. Rxe3 {[%clk 0:00:08.4]} 28... Nc5
{[%clk 0:00:20.5]} 29. Rc3 {[%clk 0:00:07.6]} 29... b6 {[%clk 0:00:20.9]} 30.
Rg3 {[%clk 0:00:05.1]} 30... Rc7 {[%clk 0:00:18.4]} 31. Rg5 {[%clk 0:00:02.8]}
31... Rc8 {[%clk 0:00:17.2]} 32. h5 {[%clk 0:00:02.9]} 32... Rxd8 {[%clk
0:00:17.3]} 0-1

[Event "*** Titled Tuesday Blitz"]
[Site "Chess.com"]
[Date "2020.05.26"]
[Round "2"]
[White "ChronicUnhappiness"]
[Black "econpower"]
[Result "0-1"]
[WhiteElo "2285"]
[BlackElo "2634"]
[TimeControl "180+1"]
[EndTime "10:17:34 PDT"]
[Termination "econpower won by resignation"]

1. c4 {[%clk 0:03:00.9]} 1... g6 {[%clk 0:02:59.5]} 2. e4 {[%clk 0:02:53.9]}
2... Bg7 {[%clk 0:03:00.4]} 3. Nc3 {[%clk 0:02:53.5]} 3... d6 {[%clk 0:03:01]}
4. d4 {[%clk 0:02:53]} 4... Nd7 {[%clk 0:03:01.7]} 5. f4 {[%clk 0:02:47.6]} 5...
e5 {[%clk 0:02:59.2]} 6. dxe5 {[%clk 0:02:42.6]} 6... dxe5 {[%clk 0:02:59]} 7.
Nf3 {[%clk 0:02:42.4]} 7... Ne7 {[%clk 0:02:23.1]} 8. Nxe5 {[%clk 0:02:37.5]}
8... Nxe5 {[%clk 0:02:20.3]} 9. Qxd8+ {[%clk 0:02:38.4]} 9... Kxd8 {[%clk
0:02:20.8]} 10. fxe5 {[%clk 0:02:38.7]} 10... Bxe5 {[%clk 0:02:19.8]} 11. Bg5
{[%clk 0:02:37.4]} 11... f6 {[%clk 0:02:17.1]} 12. O-O-O+ {[%clk 0:02:34.1]}
12... Bd7 {[%clk 0:02:13.4]} 13. Be3 {[%clk 0:02:29.5]} 13... c6 {[%clk
0:02:13]} 14. Na4 {[%clk 0:01:47.6]} 14... b6 {[%clk 0:02:04.1]} 15. Be2 {[%clk
0:01:17.6]} 15... Kc7 {[%clk 0:02:03.3]} 16. c5 {[%clk 0:01:15.8]} 16... b5
{[%clk 0:02:02.6]} 17. Nc3 {[%clk 0:01:15.2]} 17... Be6 {[%clk 0:01:42]} 18. a3
{[%clk 0:01:12.9]} 18... a5 {[%clk 0:01:31.1]} 19. Bd4 {[%clk 0:01:00.4]} 19...
Bb3 {[%clk 0:01:13.4]} 20. Bxe5+ {[%clk 0:00:57.9]} 20... fxe5 {[%clk
0:01:14.3]} 21. Rd6 {[%clk 0:00:57.1]} 21... b4 {[%clk 0:01:14.5]} 22. Bd1
{[%clk 0:00:43.8]} 22... Bxd1 {[%clk 0:01:00.9]} 23. Nxd1 {[%clk 0:00:42.9]}
23... Rad8 {[%clk 0:00:58.5]} 24. Rxd8 {[%clk 0:00:39.3]} 24... Rxd8 {[%clk
0:00:57.6]} 25. Rf1 {[%clk 0:00:40.2]} 25... Kd7 {[%clk 0:00:54.5]} 26. Rf7
{[%clk 0:00:37.1]} 26... Ke6 {[%clk 0:00:54.7]} 27. Rxh7 {[%clk 0:00:34.2]}
27... Rd4 {[%clk 0:00:54.1]} 28. axb4 {[%clk 0:00:31.5]} 28... axb4 {[%clk
0:00:54]} 29. Rh4 {[%clk 0:00:25]} 29... Rc4+ {[%clk 0:00:54]} 30. Kd2 {[%clk
0:00:24.6]} 30... Rxc5 {[%clk 0:00:54.9]} 31. Ne3 {[%clk 0:00:24.3]} 31... Ng8
{[%clk 0:00:48.5]} 32. Rh8 {[%clk 0:00:19.7]} 32... Nf6 {[%clk 0:00:48.6]} 33.
Kd3 {[%clk 0:00:17]} 33... Rc1 {[%clk 0:00:49.1]} 34. Rc8 {[%clk 0:00:15]} 34...
Nd7 {[%clk 0:00:45.4]} 35. Nc4 {[%clk 0:00:13.6]} 35... Nc5+ {[%clk 0:00:44.8]}
36. Ke3 {[%clk 0:00:10.6]} 36... Rxc4 {[%clk 0:00:45.2]} 37. Rxc6+ {[%clk
0:00:11.1]} 37... Kd7 {[%clk 0:00:44.5]} 38. Rxg6 {[%clk 0:00:10]} 38... Rxe4+
{[%clk 0:00:45.1]} 39. Kf3 {[%clk 0:00:10.5]} 39... Rf4+ {[%clk 0:00:45.3]} 40.
Kg3 {[%clk 0:00:10.1]} 40... Ne4+ {[%clk 0:00:44.8]} 41. Kh3 {[%clk 0:00:08.9]}
41... Nf2+ {[%clk 0:00:39.1]} 42. Kg3 {[%clk 0:00:08.3]} 42... Nh1+ {[%clk
0:00:39.3]} 43. Kh3 {[%clk 0:00:07.7]} 43... e4 {[%clk 0:00:39.8]} 44. Rg4
{[%clk 0:00:06.6]} 44... Nf2+ {[%clk 0:00:39.5]} 45. Kg3 {[%clk 0:00:07]} 45...
Rxg4+ {[%clk 0:00:39.9]} 46. Kxf2 {[%clk 0:00:07.9]} 46... Ke6 {[%clk
0:00:40.5]} 47. g3 {[%clk 0:00:08.8]} 47... Ke5 {[%clk 0:00:40.3]} 0-1

[Event "*** Titled Tuesday Blitz"]
[Site "Chess.com"]
[Date "2020.05.26"]
[Round "2"]
[White "seastar"]
[Black "MarceloPlaya"]
[Result "0-1"]
[WhiteElo "2044"]
[BlackElo "2375"]
[TimeControl "180+1"]
[EndTime "10:17:37 PDT"]
[Termination "MarceloPlaya won by resignation"]

1. d4 {[%clk 0:03:00.9]} 1... e6 {[%clk 0:02:59.7]} 2. c4 {[%clk 0:03:01.3]}
2... Nf6 {[%clk 0:02:59]} 3. Nc3 {[%clk 0:03:01.6]} 3... Bb4 {[%clk 0:02:58.4]}
4. e3 {[%clk 0:03:02]} 4... O-O {[%clk 0:02:57.3]} 5. Bd3 {[%clk 0:03:02.3]}
5... c5 {[%clk 0:02:56.1]} 6. Ne2 {[%clk 0:03:02]} 6... d6 {[%clk 0:02:55.2]} 7.
O-O {[%clk 0:02:59.1]} 7... Bxc3 {[%clk 0:02:54.3]} 8. bxc3 {[%clk 0:02:58.4]}
8... e5 {[%clk 0:02:53.5]} 9. e4 {[%clk 0:02:52.4]} 9... Nc6 {[%clk 0:02:50.4]}
10. d5 {[%clk 0:02:50]} 10... Na5 {[%clk 0:02:48.8]} 11. Bg5 {[%clk 0:02:47.8]}
11... h6 {[%clk 0:02:47.4]} 12. Bh4 {[%clk 0:02:41.6]} 12... g5 {[%clk
0:02:44.3]} 13. Bg3 {[%clk 0:02:41.1]} 13... Nh5 {[%clk 0:02:43.5]} 14. h3
{[%clk 0:02:14.1]} 14... b6 {[%clk 0:02:38.5]} 15. Nc1 {[%clk 0:01:48.2]} 15...
Nf4 {[%clk 0:02:28.4]} 16. Bxf4 {[%clk 0:01:36.3]} 16... exf4 {[%clk 0:02:20.7]}
17. Kh2 {[%clk 0:01:33.5]} 17... f6 {[%clk 0:02:16]} 18. g3 {[%clk 0:01:32.7]}
18... fxg3+ {[%clk 0:02:07.7]} 19. fxg3 {[%clk 0:01:31.7]} 19... Qe7 {[%clk
0:02:07.5]} 20. Nb3 {[%clk 0:01:21.6]} 20... Nb7 {[%clk 0:01:58.7]} 21. Qh5
{[%clk 0:01:14.5]} 21... Qg7 {[%clk 0:01:43.8]} 22. Nd2 {[%clk 0:01:08.6]} 22...
Nd8 {[%clk 0:01:37.7]} 23. Rf2 {[%clk 0:01:08.3]} 23... Nf7 {[%clk 0:01:33.6]}
24. Nf3 {[%clk 0:01:00.5]} 24... Bd7 {[%clk 0:01:31.5]} 25. Raf1 {[%clk
0:00:59]} 25... Nh8 {[%clk 0:01:14.9]} 26. Kg2 {[%clk 0:00:47.5]} 26... Rae8
{[%clk 0:01:02.7]} 27. Nh2 {[%clk 0:00:41.7]} 27... Ng6 {[%clk 0:00:58.4]} 28.
Ng4 {[%clk 0:00:37.8]} 28... Bxg4 {[%clk 0:00:57.1]} 29. Qxg4 {[%clk 0:00:35.3]}
29... Ne5 {[%clk 0:00:54.1]} 30. Qe2 {[%clk 0:00:35.5]} 30... Re7 {[%clk
0:00:43.1]} 31. Rf5 {[%clk 0:00:34.3]} 31... Qg6 {[%clk 0:00:31.9]} 32. Rh1
{[%clk 0:00:31]} 32... Rfe8 {[%clk 0:00:28.4]} 33. h4 {[%clk 0:00:20.8]} 33...
Nf7 {[%clk 0:00:27.1]} 34. h5 {[%clk 0:00:18.9]} 34... Qxf5 {[%clk 0:00:26.2]}
35. exf5 {[%clk 0:00:17.3]} 35... Rxe2+ {[%clk 0:00:25.6]} 36. Bxe2 {[%clk
0:00:18.2]} 36... Rxe2+ {[%clk 0:00:24.7]} 37. Kf3 {[%clk 0:00:18.6]} 37... Re7
{[%clk 0:00:22]} 38. a4 {[%clk 0:00:17]} 38... Ne5+ {[%clk 0:00:21.3]} 39. Kg2
{[%clk 0:00:13.1]} 39... Nxc4 {[%clk 0:00:20.8]} 0-1

[Event "*** Titled Tuesday Blitz"]
[Site "Chess.com"]
[Date "2020.05.26"]
[Round "2"]
[White "AnishGiri"]
[Black "velemajstor767276"]
[Result "1-0"]
[WhiteElo "2981"]
[BlackElo "2587"]
[TimeControl "180+1"]
[EndTime "10:17:38 PDT"]
[Termination "AnishGiri won on time"]

1. d4 {[%clk 0:03:00.9]} 1... Nf6 {[%clk 0:02:59.2]} 2. c4 {[%clk 0:03:01.1]}
2... e6 {[%clk 0:02:59.4]} 3. Nf3 {[%clk 0:03:01.1]} 3... Bb4+ {[%clk
0:02:56.8]} 4. Nbd2 {[%clk 0:02:59.9]} 4... d6 {[%clk 0:02:53.6]} 5. a3 {[%clk
0:02:43.7]} 5... Bxd2+ {[%clk 0:02:53.3]} 6. Bxd2 {[%clk 0:02:42.6]} 6... h6
{[%clk 0:02:49.2]} 7. Qc2 {[%clk 0:02:41.7]} 7... Nbd7 {[%clk 0:02:42.9]} 8. g4
{[%clk 0:02:27.7]} 8... b6 {[%clk 0:02:28.5]} 9. g5 {[%clk 0:02:27.8]} 9... hxg5
{[%clk 0:02:28.8]} 10. Nxg5 {[%clk 0:02:28.1]} 10... Bb7 {[%clk 0:02:26.2]} 11.
f3 {[%clk 0:02:24.4]} 11... Qe7 {[%clk 0:01:59.3]} 12. O-O-O {[%clk 0:02:23.3]}
12... c5 {[%clk 0:01:49.5]} 13. d5 {[%clk 0:01:45.6]} 13... exd5 {[%clk
0:01:44.1]} 14. cxd5 {[%clk 0:01:46.5]} 14... O-O-O {[%clk 0:01:33.8]} 15. e4
{[%clk 0:01:45.4]} 15... Kb8 {[%clk 0:01:30.5]} 16. Kb1 {[%clk 0:01:45]} 16...
Ne5 {[%clk 0:01:21.9]} 17. h4 {[%clk 0:01:34.9]} 17... Nh5 {[%clk 0:01:17]} 18.
Rg1 {[%clk 0:01:33.9]} 18... Ng6 {[%clk 0:01:10.3]} 19. Be1 {[%clk 0:01:33.8]}
19... Nhf4 {[%clk 0:01:03.9]} 20. Qc1 {[%clk 0:01:25.6]} 20... Bc8 {[%clk
0:00:55.5]} 21. a4 {[%clk 0:01:21.6]} 21... f6 {[%clk 0:00:30.4]} 22. Ne6 {[%clk
0:01:17.9]} 22... Bxe6 {[%clk 0:00:28.1]} 23. dxe6 {[%clk 0:01:18.6]} 23... Qxe6
{[%clk 0:00:27.7]} 24. a5 {[%clk 0:01:14.5]} 24... Qb3 {[%clk 0:00:23]} 25. Rg3
{[%clk 0:00:32.9]} 25... Rxh4 {[%clk 0:00:15.4]} 26. Bc4 {[%clk 0:00:32.5]}
26... Qa4 {[%clk 0:00:12.4]} 27. b3 {[%clk 0:00:33.1]} 27... Qd7 {[%clk
0:00:08.8]} 28. Bd2 {[%clk 0:00:32.8]} 28... Qe7 {[%clk 0:00:06.4]} 29. Rdg1
{[%clk 0:00:32.3]} 29... Qe5 {[%clk 0:00:05.3]} 30. Rxg6 {[%clk 0:00:27.6]}
30... Nxg6 {[%clk 0:00:06.2]} 31. Rxg6 {[%clk 0:00:27.9]} 31... Rh2 {[%clk
0:00:04]} 32. Bf4 {[%clk 0:00:25.8]} 32... Qe8 {[%clk 0:00:03.8]} 33. Rxg7
{[%clk 0:00:23.6]} 33... Rf2 {[%clk 0:00:03.3]} 34. a6 {[%clk 0:00:20.6]} 34...
Rxf3 {[%clk 0:00:02.4]} 35. Rb7+ {[%clk 0:00:20.8]} 35... Kc8 {[%clk 0:00:02.2]}
36. Bd5 {[%clk 0:00:19.3]} 1-0

[Event "*** Titled Tuesday Blitz"]
[Site "Chess.com"]
[Date "2020.05.26"]
[Round "2"]
[White "mishanick"]
[Black "Nor1lsk"]
[Result "1-0"]
[WhiteElo "2966"]
[BlackElo "2584"]
[TimeControl "180+1"]
[EndTime "10:17:39 PDT"]
[Termination "mishanick won by resignation"]

1. d4 {[%clk 0:02:58.5]} 1... g6 {[%clk 0:02:59.4]} 2. c4 {[%clk 0:02:53.9]}
2... Bg7 {[%clk 0:02:59.5]} 3. Nc3 {[%clk 0:02:39.1]} 3... c5 {[%clk 0:02:58.6]}
4. d5 {[%clk 0:02:38.8]} 4... Bxc3+ {[%clk 0:02:56.2]} 5. bxc3 {[%clk
0:02:39.7]} 5... f5 {[%clk 0:02:56.6]} 6. e4 {[%clk 0:02:37.2]} 6... fxe4 {[%clk
0:02:56.5]} 7. f3 {[%clk 0:02:37.4]} 7... Nf6 {[%clk 0:02:52.3]} 8. fxe4 {[%clk
0:02:36.8]} 8... Qa5 {[%clk 0:02:52.4]} 9. Qc2 {[%clk 0:02:30]} 9... d6 {[%clk
0:02:52.2]} 10. Bd3 {[%clk 0:02:23]} 10... Nbd7 {[%clk 0:02:51.5]} 11. Nf3
{[%clk 0:02:23.5]} 11... Ng4 {[%clk 0:02:47.3]} 12. O-O {[%clk 0:02:23.2]} 12...
O-O {[%clk 0:02:41.6]} 13. Bg5 {[%clk 0:02:21]} 13... Qd8 {[%clk 0:02:28.1]} 14.
Qd2 {[%clk 0:02:12]} 14... Nde5 {[%clk 0:01:46.3]} 15. Nxe5 {[%clk 0:02:10.8]}
15... Nxe5 {[%clk 0:01:46.4]} 16. Rxf8+ {[%clk 0:02:05.7]} 16... Qxf8 {[%clk
0:01:45.8]} 17. Rf1 {[%clk 0:02:06.3]} 17... Qe8 {[%clk 0:01:40]} 18. Be2 {[%clk
0:02:03.2]} 18... Bg4 {[%clk 0:01:27.8]} 19. Bxg4 {[%clk 0:01:32.6]} 19... Nxg4
{[%clk 0:01:27.2]} 20. Qf4 {[%clk 0:01:33]} 20... Ne5 {[%clk 0:01:26.3]} 21. Qh4
{[%clk 0:01:33.5]} 21... Qd7 {[%clk 0:00:46.7]} 22. Bxe7 {[%clk 0:01:31.6]}
22... Re8 {[%clk 0:00:46.7]} 23. Bg5 {[%clk 0:01:20.3]} 23... Qg4 {[%clk
0:00:32.3]} 24. Qxg4 {[%clk 0:00:30.3]} 24... Nxg4 {[%clk 0:00:31]} 25. Bf4
{[%clk 0:00:31.2]} 25... Ne5 {[%clk 0:00:19.7]} 26. Bxe5 {[%clk 0:00:27.5]}
26... Rxe5 {[%clk 0:00:20.6]} 27. Re1 {[%clk 0:00:25.3]} 27... Kg7 {[%clk
0:00:16.5]} 28. Kf2 {[%clk 0:00:25.7]} 28... Kf6 {[%clk 0:00:16.8]} 29. Ke3
{[%clk 0:00:25.4]} 29... Rh5 {[%clk 0:00:16.5]} 30. h3 {[%clk 0:00:25.4]} 30...
Ke7 {[%clk 0:00:13.3]} 31. Rb1 {[%clk 0:00:24.3]} 31... b6 {[%clk 0:00:13]} 32.
a4 {[%clk 0:00:24.9]} 32... Kd7 {[%clk 0:00:12.9]} 33. a5 {[%clk 0:00:25.2]}
33... Kc7 {[%clk 0:00:12.9]} 34. axb6+ {[%clk 0:00:25.5]} 34... axb6 {[%clk
0:00:13.8]} 35. Rf1 {[%clk 0:00:25.5]} 35... Rg5 {[%clk 0:00:10.5]} 36. Rf7+
{[%clk 0:00:25.7]} 36... Kb8 {[%clk 0:00:10.8]} 37. g4 {[%clk 0:00:25.9]} 37...
h5 {[%clk 0:00:11]} 38. Kf4 {[%clk 0:00:22.5]} 38... Re5 {[%clk 0:00:10.4]} 39.
g5 {[%clk 0:00:22.9]} 1-0

[Event "*** Titled Tuesday Blitz"]
[Site "Chess.com"]
[Date "2020.05.26"]
[Round "2"]
[White "Grandelicious"]
[Black "AleksibFan"]
[Result "1-0"]
[WhiteElo "2798"]
[BlackElo "2515"]
[TimeControl "180+1"]
[EndTime "10:17:39 PDT"]
[Termination "Grandelicious won by resignation"]

1. Nf3 {[%clk 0:03:00.9]} 1... d5 {[%clk 0:02:59.9]} 2. g3 {[%clk 0:02:58.8]}
2... Nf6 {[%clk 0:02:59.8]} 3. Bg2 {[%clk 0:02:58.3]} 3... c6 {[%clk 0:02:59.9]}
4. O-O {[%clk 0:02:57.7]} 4... e6 {[%clk 0:03:00.2]} 5. c4 {[%clk 0:02:56.9]}
5... Nbd7 {[%clk 0:03:00.3]} 6. b3 {[%clk 0:02:56.8]} 6... Bd6 {[%clk 0:03:00]}
7. Bb2 {[%clk 0:02:56.7]} 7... O-O {[%clk 0:03:00.2]} 8. Nc3 {[%clk 0:02:54.7]}
8... Re8 {[%clk 0:02:59.3]} 9. Rc1 {[%clk 0:02:54]} 9... a6 {[%clk 0:02:58.5]}
10. d4 {[%clk 0:02:50.6]} 10... Qe7 {[%clk 0:02:44.2]} 11. Nd2 {[%clk
0:02:44.6]} 11... Ba3 {[%clk 0:02:25.1]} 12. Bxa3 {[%clk 0:02:25.5]} 12... Qxa3
{[%clk 0:02:26]} 13. e4 {[%clk 0:02:26.3]} 13... dxe4 {[%clk 0:02:25.3]} 14.
Ndxe4 {[%clk 0:02:26]} 14... Nxe4 {[%clk 0:02:24.6]} 15. Nxe4 {[%clk 0:02:26.9]}
15... Qxa2 {[%clk 0:02:00.8]} 16. Ra1 {[%clk 0:02:06.9]} 16... Qb2 {[%clk
0:01:59.8]} 17. Nd6 {[%clk 0:02:03.2]} 17... Rd8 {[%clk 0:01:53.4]} 18. Re1
{[%clk 0:01:07]} 18... c5 {[%clk 0:01:32.8]} 19. Qh5 {[%clk 0:00:53.5]} 19...
Rf8 {[%clk 0:01:31]} 20. dxc5 {[%clk 0:00:51.2]} 20... Qxb3 {[%clk 0:00:53.9]}
21. Rab1 {[%clk 0:00:32.9]} 21... Qc3 {[%clk 0:00:29.5]} 22. Nxb7 {[%clk
0:00:21.5]} 22... Rb8 {[%clk 0:00:18]} 23. c6 {[%clk 0:00:20.7]} 23... Nf6
{[%clk 0:00:12]} 24. Qc5 {[%clk 0:00:18.3]} 24... Bxb7 {[%clk 0:00:08.2]} 25.
cxb7 {[%clk 0:00:19.2]} 25... Nd7 {[%clk 0:00:08.1]} 26. Qc7 {[%clk 0:00:18.5]}
26... Nf6 {[%clk 0:00:06.4]} 27. c5 {[%clk 0:00:18.8]} 27... a5 {[%clk 0:00:05]}
28. c6 {[%clk 0:00:18.1]} 28... a4 {[%clk 0:00:05.1]} 29. Rec1 {[%clk
0:00:17.5]} 29... Qd2 {[%clk 0:00:04.3]} 30. Qf4 {[%clk 0:00:13.3]} 30... Qxf4
{[%clk 0:00:03.6]} 31. gxf4 {[%clk 0:00:14.2]} 1-0

[Event "*** Titled Tuesday Blitz"]
[Site "Chess.com"]
[Date "2020.05.26"]
[Round "2"]
[White "rakshi2005"]
[Black "DanielDardha2005"]
[Result "0-1"]
[WhiteElo "2316"]
[BlackElo "2642"]
[TimeControl "180+1"]
[EndTime "10:17:39 PDT"]
[Termination "DanielDardha2005 won by resignation"]

1. e4 {[%clk 0:03:00.9]} 1... c5 {[%clk 0:03:00]} 2. Nf3 {[%clk 0:02:59.6]} 2...
Nf6 {[%clk 0:02:59.6]} 3. Nc3 {[%clk 0:02:59.4]} 3... d5 {[%clk 0:02:59]} 4.
exd5 {[%clk 0:02:57.3]} 4... Nxd5 {[%clk 0:02:59.9]} 5. Be2 {[%clk 0:02:57.1]}
5... Nc6 {[%clk 0:02:59.6]} 6. O-O {[%clk 0:02:56.8]} 6... g6 {[%clk 0:02:58]}
7. Bc4 {[%clk 0:02:46.4]} 7... Nc7 {[%clk 0:02:52.2]} 8. a4 {[%clk 0:02:35.4]}
8... Bg7 {[%clk 0:02:51.1]} 9. d3 {[%clk 0:02:28.6]} 9... O-O {[%clk 0:02:50]}
10. Re1 {[%clk 0:02:27.6]} 10... Rb8 {[%clk 0:02:44.3]} 11. Bf4 {[%clk
0:02:26.4]} 11... Ra8 {[%clk 0:02:25.4]} 12. Ne5 {[%clk 0:02:10.3]} 12... Nd4
{[%clk 0:02:17.8]} 13. h3 {[%clk 0:01:58]} 13... Be6 {[%clk 0:02:15.1]} 14. Bxe6
{[%clk 0:01:53.1]} 14... Ncxe6 {[%clk 0:02:16]} 15. Bh2 {[%clk 0:01:53.5]} 15...
Rc8 {[%clk 0:02:13.1]} 16. Nc4 {[%clk 0:01:51.4]} 16... Bh6 {[%clk 0:01:59.3]}
17. Ne4 {[%clk 0:01:47.2]} 17... Bf4 {[%clk 0:01:50.5]} 18. Bxf4 {[%clk
0:01:35.1]} 18... Nxf4 {[%clk 0:01:51.4]} 19. Qd2 {[%clk 0:01:35.2]} 19... Nxh3+
{[%clk 0:01:50.1]} 20. Kh2 {[%clk 0:01:30.6]} 20... f5 {[%clk 0:01:29.6]} 21.
Kxh3 {[%clk 0:01:12.3]} 21... fxe4 {[%clk 0:01:29.3]} 22. Rxe4 {[%clk
0:01:12.4]} 22... Qd5 {[%clk 0:01:20]} 23. Re5 {[%clk 0:01:08]} 23... Qf7 {[%clk
0:01:16.6]} 24. Rf1 {[%clk 0:00:38.8]} 24... Nf3 {[%clk 0:01:06.3]} 25. gxf3
{[%clk 0:00:26]} 25... Qxf3+ {[%clk 0:01:07.2]} 26. Kh2 {[%clk 0:00:26.4]} 26...
Rf4 {[%clk 0:01:02]} 27. Re4 {[%clk 0:00:26.3]} 27... Qh5+ {[%clk 0:00:59.7]}
28. Kg2 {[%clk 0:00:24.2]} 28... Qg5+ {[%clk 0:00:48]} 29. Kh2 {[%clk
0:00:22.4]} 29... Rcf8 {[%clk 0:00:29.5]} 30. Qe3 {[%clk 0:00:19.6]} 30... Qh4+
{[%clk 0:00:24.4]} 31. Kg2 {[%clk 0:00:16.3]} 31... R8f5 {[%clk 0:00:14.2]} 32.
Rg1 {[%clk 0:00:05.3]} 32... Rxf2+ {[%clk 0:00:12.7]} 0-1